fUST/lending_fUST_20251002
["ID","MTS","AMOUNT","RATE_DAILY","PERIOD"]
[388834074,1759407049859,-151.0,0.00019,2]
[388834075,1759407049869,-157.030091,0.00019,2]
[388834076,1759407049878,-157.030091,0.00019,2]
[388834077,1759407049888,-151.0,0.00019,2]
[388834078,1759407049898,-157.030091,0.00019,2]
[388834079,1759407049907,-157.030091,0.00019,2]
[388834080,1759407049917,-151.0,0.00019,2]
[388834081,1759407049927,-169.744896,0.00019,2]
[388834082,1759407049938,-182.1531,0.00019,2]
[388834083,1759407049948,-4672.83628518,0.00019,2]
[388834084,1759407049958,-182.1531,0.00019,2]
[388834085,1759407049968,-151.845529,0.00019,2]
[388834086,1759407049978,-151.0,0.00019,2]
[388834087,1759407049987,-182.1531,0.00019,2]
[388834088,1759407049997,-151.845529,0.00019,2]
[388834089,1759407050006,-182.1531,0.00019,2]
[388834090,1759407050016,-151.845529,0.00019,2]
[388834091,1759407050026,-151.0,0.00019,2]
[388834092,1759407050034,-151.845529,0.00019,2]
[388834093,1759407050043,-151.0,0.00019,2]
[388834094,1759407050052,-151.0,0.00019,2]
[388834095,1759407050062,-151.0,0.00019,2]
[388834096,1759407050071,-310.267737,0.00019,2]
[388834097,1759407050081,-310.267737,0.00019,2]
[388834098,1759407050090,-310.267737,0.00019,2]
[388834099,1759407050099,-310.267737,0.00019,2]
[388834100,1759407050109,-2798.884794,0.00019,2]
[388834101,1759407050119,-1090.81785771,0.00019,2]
[388834122,1759407050436,-1708.06693629,0.00019,2]
[388834123,1759407050446,-2798.884794,0.00019,2]
[388834124,1759407050456,-2798.884794,0.00019,2]
[388834125,1759407050465,-151.0,0.00019,2]
[388834126,1759407050475,-151.0,0.00019,2]
[388834127,1759407050488,-151.0,0.00019,2]
[388834128,1759407050497,-151.0,0.00019,2]
[388834129,1759407050506,-151.0,0.00019,2]
[388834130,1759407050516,-151.0,0.00019,2]
[388834131,1759407050526,-151.0,0.00019,2]
[388834132,1759407050535,-151.0,0.00019,2]
[388834133,1759407050545,-398.507537,0.00019,2]
[388834134,1759407050554,-398.507537,0.00019,2]
[388834135,1759407050563,-398.507537,0.00019,2]
[388834136,1759407050572,-398.507537,0.00019,2]
[388834137,1759407050582,-153.462214,0.00019,2]
[388834138,1759407050591,-306.923605,0.00019,2]
[388834139,1759407050600,-151.0,0.00019,2]
[388834140,1759407050609,-306.923605,0.00019,2]
[388834141,1759407050618,-306.923605,0.00019,2]
[388834142,1759407050627,-306.923605,0.00019,2]
[388834143,1759407050636,-151.0,0.00019,2]
[388834144,1759407050645,-151.0,0.00019,2]
[388834145,1759407050654,-151.0,0.00019,2]
[388834146,1759407050663,-408.950776,0.00019,2]
[388834147,1759407050672,-408.950776,0.00019,2]
[388834148,1759407050681,-408.950776,0.00019,2]
[388834149,1759407050690,-408.950776,0.00019,2]
[388834150,1759407050699,-226.571393,0.00019,2]
[388834151,1759407050709,-226.571393,0.00019,2]
[388834152,1759407050718,-226.571393,0.00019,2]
[388834153,1759407050728,-226.571393,0.00019,2]
[388834154,1759407050738,-411.11948,0.00019,2]
[388834155,1759407050748,-411.11948,0.00019,2]
[388834156,1759407050757,-151.0,0.00019,2]
[388834157,1759407050767,-411.11948,0.00019,2]
[388834158,1759407050776,-411.11948,0.00019,2]
[388834159,1759407050785,-151.0,0.00019,2]
[388834160,1759407050794,-27.29825001,0.00019,2]
[388834163,1759407109170,-6821.29721129,0.000183,2]
[388834164,1759407111181,23234.34,0.00028767,120]
[388834166,1759407134748,-300.0,0.00018299,2]
[388834167,1759407141013,17094.9439433,0.00017892,2]
[388834168,1759407141296,442.350295,0.00017892,2]
[388834169,1759407162178,-953.0,0.00018299,2]
[388834170,1759407174921,30009.9062123,0.00017999,2]
[388834171,1759407179064,666.0,0.00017855,2]
[388834172,1759407184005,1015.8,0.00026,60]
[388834173,1759407184870,-300.0,0.00018068,2]
[388834174,1759407186366,-36.0,0.00018068,2]
[388834175,1759407219234,-500.0,0.00018273,2]
[388834176,1759407219256,-500.0,0.00018273,2]
[388834177,1759407219278,-300.0,0.00018298,2]
[388834178,1759407219299,-247.0,0.00018299,2]
[388834179,1759407219319,-398.97149544,0.00018299,2]
[388834180,1759407219341,-562.90096477,0.00018299,2]
[388834181,1759407219361,-500.0,0.00018299,2]
[388834182,1759407219383,-453.50314819,0.00018299,2]
[388834183,1759407219403,-292.09254517,0.00018299,2]
[388834184,1759407219425,-192.69438036,0.00018299,2]
[388834185,1759407219445,-193.03396836,0.00018299,2]
[388834186,1759407219465,-500.0,0.00018299,2]
[388834187,1759407219485,-33359.80349771,0.000183,2]
[388834188,1759407242810,500.0,0.00028767,120]
[388834189,1759407249876,5000.0,0.00018,2]
[388834190,1759407256157,500.0,0.00028767,120]
[388834191,1759407262308,500.0,0.00028767,120]
[388834192,1759407267742,500.0,0.00028767,120]
[388834193,1759407273086,500.0,0.00028767,120]
[388834194,1759407273118,5000.0,0.00018184,2]
[388834195,1759407278371,500.0,0.00028767,120]
[388834196,1759407283013,500.0,0.00028767,120]
[388834197,1759407287539,500.0,0.00028767,120]
[388834198,1759407291914,500.0,0.00028767,120]
[388834201,1759407296156,500.0,0.00028767,120]
[388834202,1759407296220,5000.0,0.00018184,2]
[388834203,1759407300552,500.0,0.00028767,120]
[388834205,1759407305699,500.0,0.00028767,120]
[388834207,1759407312018,500.0,0.00026117,120]
[388834209,1759407318321,500.0,0.00028767,120]
[388834210,1759407319218,0.01,0.00018184,2]
[388834211,1759407319239,4999.99,0.00018184,2]
[388834213,1759407330309,500.0,0.00026117,120]
[388834214,1759407335997,500.0,0.00028767,120]
[388834215,1759407340967,500.0,0.00028767,120]
[388834216,1759407342982,5000.0,0.00018184,2]
[388834217,1759407362526,500.0,0.00028767,120]
[388834218,1759407365902,0.02,0.00018184,2]
[388834219,1759407365926,4999.98,0.00018184,2]
[388834220,1759407366789,-2059.72374536,0.0001819,2]
[388834221,1759407367029,-4119.44749072,0.0001819,2]
[388834222,1759407367409,-1761.11501856,0.0001819,2]
[388834223,1759407367641,500.0,0.00028767,120]
[388834224,1759407372249,500.0,0.00028767,120]
[388834225,1759407377526,500.0,0.00028767,120]
[388834226,1759407381377,5000.0,0.0001819,2]
[388834227,1759407381636,-300.0,0.00018289,2]
[388834228,1759407382166,500.0,0.00028767,120]
[388834229,1759407386787,500.0,0.00028767,120]
[388834230,1759407389566,5000.0,0.00018289,2]
[388834234,1759407405273,1000.0,0.00028767,120]
[388834236,1759407410862,201.466981,0.00017641,2]
[388834237,1759407412384,4138.97832997,0.0001829,2]
[388834239,1759407418653,1392.2257853,0.00028767,120]
[388834249,1759407467798,319.4,0.00028767,120]
[388834251,1759407477595,2083.17443925,0.00018199,2]
[388834259,1759407511411,207.0238132,0.00017641,2]
[388834261,1759407514273,300.0,0.0001829,5]
[388834263,1759407525913,259.8903133,0.00017355,2]
[388834267,1759407549440,150.0,0.0002876,120]
[388834271,1759407576396,574.0,0.00018142,2]
[388834276,1759407628984,272.0,0.00018289,2]
[388834277,1759407638600,1493.57,0.00028767,120]
[388834278,1759407693964,-398.77,0.0001829,3]
[388834279,1759407693990,-199.38,0.0001829,3]
[388834280,1759407694017,-598.19,0.0001829,3]
[388834281,1759407694045,-300.0,0.00018297,2]
[388834282,1759407694071,-1200.0,0.00018298,2]
[388834283,1759407694098,-300.0,0.00018298,2]
[388834284,1759407694125,-300.0,0.00018298,2]
[388834285,1759407694167,-300.0,0.00018298,2]
[388834286,1759407694197,-300.0,0.00018298,2]
[388834287,1759407694226,-1007.33,0.00018298,2]
[388834288,1759407694448,-192.67,0.00018298,2]
[388834289,1759407694476,-207.57640705,0.00018299,2]
[388834290,1759407694504,-195.58146973,0.00018299,2]
[388834291,1759407694531,-500.0,0.00018299,2]
[388834292,1759407694560,-578.21768661,0.00018299,2]
[388834293,1759407694588,-210.74911682,0.00018299,2]
[388834294,1759407694616,-500.0,0.00018299,2]
[388834295,1759407694644,-500.0,0.00018299,2]
[388834296,1759407694670,-500.0,0.00018299,2]
[388834297,1759407695554,-944.95433312,0.000183,2]
[388834298,1759407695601,-10000.01,0.000183,2]
[388834299,1759407695928,-10000.01,0.000183,2]
[388834300,1759407695958,-10000.01,0.000183,2]
[388834301,1759407695972,-10000.01,0.000183,2]
[388834302,1759407698057,-10000.01,0.000183,2]
[388834303,1759407698450,-10000.01,0.000183,2]
[388834304,1759407700189,-10000.01,0.000183,2]
[388834305,1759407701499,-10000.01,0.000183,2]
[388834306,1759407701623,-10000.01,0.000183,2]
[388834307,1759407703854,-10000.01,0.000183,2]
[388834308,1759407703950,-10000.01,0.000183,2]
[388834309,1759407704058,-10000.01,0.000183,2]
[388834310,1759407704182,-10000.01,0.000183,2]
[388834311,1759407704300,-10000.01,0.000183,2]
[388834312,1759407705982,-10000.01,0.000183,2]
[388834313,1759407706221,-10000.01,0.000183,2]
[388834314,1759407706357,-10000.01,0.000183,2]
[388834315,1759407706495,-10000.01,0.000183,2]
[388834316,1759407706642,-10000.01,0.000183,2]
[388834317,1759407707884,-10000.01,0.000183,2]
[388834318,1759407708010,-10000.01,0.000183,2]
[388834319,1759407708135,-10000.01,0.000183,2]
[388834320,1759407708249,-10000.01,0.000183,2]
[388834321,1759407708398,-10000.01,0.000183,2]
[388834322,1759407710006,-10000.01,0.000183,2]
[388834323,1759407710248,-10000.01,0.000183,2]
[388834324,1759407710326,-10000.01,0.000183,2]
[388834325,1759407710454,-10000.01,0.000183,2]
[388834326,1759407710668,-10000.01,0.000183,2]
[388834327,1759407711982,-10000.01,0.000183,2]
[388834328,1759407712100,-10000.01,0.000183,2]
[388834329,1759407712212,-10000.01,0.000183,2]
[388834330,1759407712523,-1126.38504212,0.000183,2]
[388834331,1759407712557,-7747.23991576,0.000183,2]
[388834332,1759407712687,-4941.90112836,0.000183,2]
[388834333,1759407712723,-116.20774328,0.000183,2]
[388834334,1759407713973,-383.79225672,0.000183,2]
[388834335,1759407720506,5000.0,0.000183,2]
[388834336,1759407736472,4232.42548656,0.000183,2]
[388834337,1759407736495,767.57451344,0.000183,2]
[388834338,1759407738289,-574.0,0.0001843,2]
[388834339,1759407744777,5000.0,0.0001843,2]
[388834340,1759407760259,3852.01,0.0001843,2]
[388834341,1759407760281,1008.51482557,0.0001843,2]
[388834342,1759407763342,8991.49517443,0.000182,2]
[388834343,1759407763364,10000.01,0.000182,2]
[388834344,1759407763386,10000.01,0.000182,2]
[388834345,1759407763408,10000.01,0.000182,2]
[388834346,1759407763430,10000.01,0.000182,2]
[388834347,1759407763453,10000.01,0.000182,2]
[388834348,1759407763477,10000.01,0.000182,2]
[388834349,1759407763499,10000.01,0.000182,2]
[388834350,1759407763521,10000.01,0.000182,2]
[388834351,1759407768270,5000.0,0.00018,2]
[388834352,1759407771555,-1148.01,0.000182,2]
[388834353,1759407773281,-10000.01,0.000182,2]
[388834354,1759407773552,-10000.01,0.000182,2]
[388834355,1759407773657,-10000.01,0.000182,2]
[388834356,1759407773794,-10000.01,0.000182,2]
[388834357,1759407773911,-10000.01,0.000182,2]
[388834358,1759407774026,-10000.01,0.000182,2]
[388834359,1759407774720,-10000.01,0.000182,2]
[388834360,1759407774765,-10000.01,0.000182,2]
[388834361,1759407774980,-10000.01,0.000182,2]
[388834362,1759407775026,-10000.01,0.000182,2]
[388834363,1759407780491,-10000.01,0.000182,2]
[388834364,1759407780749,-10000.01,0.000182,2]
[388834365,1759407780866,-10000.01,0.000182,2]
[388834366,1759407781024,-10000.01,0.000182,2]
[388834367,1759407781161,-10000.01,0.000182,2]
[388834368,1759407781287,-10000.01,0.000182,2]
[388834369,1759407781415,-10000.01,0.000182,2]
[388834370,1759407781533,-10000.01,0.000182,2]
[388834371,1759407781669,-10000.01,0.000182,2]
[388834372,1759407781794,-10000.01,0.000182,2]
[388834373,1759407786536,-300.0,0.00018199,2]
[388834374,1759407788588,-10000.01,0.000182,2]
[388834375,1759407788676,-10000.01,0.000182,2]
[388834376,1759407788862,-10000.01,0.000182,2]
[388834377,1759407788970,-10000.01,0.000182,2]
[388834378,1759407789107,-10000.01,0.000182,2]
[388834379,1759407789289,-10000.01,0.000182,2]
[388834380,1759407789424,-10000.01,0.000182,2]
[388834381,1759407789552,-139.86517443,0.000182,2]
[388834382,1759407789575,-9720.27965114,0.000182,2]
[388834383,1759407791160,5000.0,0.00018199,2]
[388834384,1759407794703,-477.72170185,0.00018428,2]
[388834385,1759407799046,5000.0,0.00018428,2]
[388834409,1759407807165,1929.5487948,0.00018428,2]
[388834410,1759407815330,2115.0178015,0.00018428,2]
[388834411,1759407815352,2884.9821985,0.00018428,2]
[388834412,1759407815731,-476.74739044,0.00018478,2]
[388834413,1759407817896,159.24056727,0.00018428,2]
[388834414,1759407818199,159.24056727,0.00018478,2]
[388834415,1759407826848,165.04515382,0.00018428,2]
[388834416,1759407838182,5000.0,0.00018478,2]
[388834417,1759407865170,3562.98893076,0.00018478,2]
[388834418,1759407865191,1437.01106924,0.00018478,2]
[388834419,1759407868703,3527.44464887,0.00018428,2]
[388834420,1759407882856,150.0,0.00028767,120]
[388834422,1759407938658,5035.55428189,0.000182,2]
[388834423,1759407938683,10000.01,0.000182,2]
[388834424,1759407938707,10000.01,0.000182,2]
[388834425,1759407938732,10000.01,0.000182,2]
[388834426,1759407938757,10000.01,0.000182,2]
[388834427,1759407938782,10000.01,0.000182,2]
[388834428,1759407938807,10000.01,0.000182,2]
[388834429,1759407938832,10000.01,0.000182,2]
[388834430,1759407938855,10000.01,0.000182,2]
[388834431,1759407938879,10000.01,0.000182,2]
[388834432,1759407945192,-4023.96598608,0.000182,2]
[388834434,1759407945355,-10000.01,0.000182,2]
[388834435,1759407945415,-10000.01,0.000182,2]
[388834436,1759407945571,-10000.01,0.000182,2]
[388834437,1759407945795,-10000.01,0.000182,2]
[388834438,1759407945891,-10000.01,0.000182,2]
[388834439,1759407946218,-10000.01,0.000182,2]
[388834440,1759407946392,-10000.01,0.000182,2]
[388834441,1759407946986,-10000.01,0.000182,2]
[388834442,1759407947101,-10000.01,0.000182,2]
[388834443,1759407950981,-10000.01,0.000182,2]
[388834444,1759407951075,-10000.01,0.000182,2]
[388834445,1759407951178,-10000.01,0.000182,2]
[388834446,1759407951295,-10000.01,0.000182,2]
[388834447,1759407951416,-10000.01,0.000182,2]
[388834448,1759407954063,5000.0,0.00018,2]
[388834449,1759407955539,177.18,0.00018,2]
[388834450,1759407956565,499.37476956,0.00028767,120]
[388834454,1759407962420,5000.0,0.00018,2]
[388834458,1759407971045,5000.0,0.00018,2]
[388834461,1759407979177,5000.0,0.00018,2]
[388834462,1759407987699,5000.0,0.00018,2]
[388834475,1759407995614,5000.0,0.00018,2]
[388834476,1759408003870,5000.0,0.00018,2]
[388834479,1759408012995,5000.0,0.00018,2]
[388834480,1759408015569,221.175147,0.0001761,2]
[388834481,1759408020937,4961.01598167,0.00018,2]
[388834485,1759408029016,5000.0,0.00018,2]
[388834486,1759408037659,4126.67438173,0.00018,2]
[388834487,1759408037682,873.32561827,0.00018,2]
[388834490,1759408053779,5000.0,0.00018,2]
[388834494,1759408061841,4126.67438173,0.00018,2]
[388834495,1759408063020,-873.32561827,0.00018,2]
[388834496,1759408068573,-5884.79159302,0.0001799,2]
[388834499,1759408102826,-300.0,0.00015,2]
[388834500,1759408106793,-300.0,0.00015,2]
[388834501,1759408108525,-405.28970573,0.00015,2]
[388834502,1759408110964,-666.0,0.00016883,2]
[388834503,1759408110986,-666.0,0.00017054,2]
[388834504,1759408111007,-666.0,0.00017226,2]
[388834505,1759408111026,-116.51805496,0.000176,2]
[388834506,1759408115280,-1228.64085819,0.00015,2]
[388834511,1759408122049,2525.90227534,0.0001,2]
[388834513,1759408123867,1813.13729085,0.0001,2]
[388834514,1759408132631,-4212.24051602,0.00016662,2]
[388834515,1759408148608,-300.0,0.00016661,2]
[388834516,1759408148635,-12671.38136423,0.00016662,2]
[388834517,1759408148663,-2257.04487677,0.0001683,2]
[388834812,1759408240418,-7405.65272479,0.00016662,2]
[388834814,1759408240427,-1200.0,0.00016828,2]
[388834815,1759408240436,-300.0,0.00016829,2]
[388834817,1759408240446,-300.0,0.00016829,2]
[388834819,1759408240456,-300.0,0.00016829,2]
[388834821,1759408240465,-300.0,0.00016829,2]
[388834823,1759408240474,-11544.34727521,0.0001683,2]
[388834825,1759408240486,-396.627,0.0001683,2]
[388834827,1759408240497,-479.95985606,0.0001683,2]
[388834840,1759408243423,-2205.64287221,0.0001683,2]
[388834841,1759408243432,-770.56145832,0.00017,2]
[388834842,1759408243444,-2263.6,0.00017,2]
[388834845,1759408243571,-1424.13200305,0.00017,2]
[388834855,1759408246530,-1341.12000012,0.00017,2]
[388834859,1759408272934,156.88214,0.00025,30]
[388834860,1759408286444,-2556.50945093,0.0001683,2]
[388834861,1759408286475,-4886.99109814,0.0001683,2]
[388834862,1759408286728,-170.03617472,0.0001683,2]
[388834863,1759408289876,-300.0,0.00016999,2]
[388834864,1759408289909,-322.05356562,0.00017,2]
[388834865,1759408292444,-199.468436,0.00016914,2]
[388834866,1759408292470,-172.69031134,0.00017,2]
[388834867,1759408294981,-178.35952112,0.00017,2]
[388834869,1759408298891,-334.45209696,0.00017,2]
[388834870,1759408300464,988.61469521,0.0001683,2]
[388834871,1759408301923,-292.66647049,0.00017,2]
[388834872,1759408306698,-207.33352951,0.00017,2]
[388834873,1759408308806,-379.13865768,0.00017,2]
[388834874,1759408308995,5000.0,0.0001683,2]
[388834875,1759408312540,-500.0,0.00017,2]
[388834876,1759408314204,-173.828921,0.00017,2]
[388834877,1759408316371,-292.42039334,0.00017,2]
[388834878,1759408318500,-174.95342101,0.00017,2]
[388834879,1759408320393,-249.88971549,0.00017,2]
[388834880,1759408323736,-260.09997174,0.00017,2]
[388834881,1759408325108,334.45209696,0.0001683,2]
[388834882,1759408326072,-404.24577342,0.00017,2]
[388834883,1759408328099,-333.95455455,0.00017,2]
[388834884,1759408328510,-3191.88848451,0.00017,2]
[388834885,1759408328670,-3616.23303098,0.00017,2]
[388834886,1759408329784,-246.02726314,0.00017239,2]
[388834887,1759408331933,-436.63010988,0.00017239,2]
[388834888,1759408333070,2767.54393804,0.00017,2]
[388834889,1759408333098,1073.48582592,0.00017,2]
[388834890,1759408334014,-286.23654563,0.00017239,2]
[388834891,1759408337183,-177.3254538,0.00017239,2]
[388834892,1759408340152,-166.063822,0.00017239,2]
[388834893,1759408340568,-510.49443992,0.00017239,2]
[388834894,1759408343454,-300.0,0.00017338,2]
[388834895,1759408343477,-275.2707443,0.00017338,2]
[388834896,1759408345068,-255.01229992,0.00017338,2]
[388834897,1759408346602,-185.14218044,0.00017338,2]
[388834898,1759408348620,-288.60595056,0.00017338,2]
[388834899,1759408351157,-195.96882478,0.00017338,2]
[388834900,1759408351179,-453.63126132,0.00017339,2]
[388834901,1759408355474,-905.23795103,0.00017339,2]
[388834902,1759408356822,5000.0,0.00017239,2]
[388834903,1759408357059,-590.509024,0.00017339,2]
[388834904,1759408359090,-498.55838868,0.00017339,2]
[388834905,1759408360555,-151.13666302,0.00017339,2]
[388834906,1759408362800,-494.14806088,0.00017339,2]
[388834907,1759408365923,-154.17596329,0.00017339,2]
[388834908,1759408367995,-406.8670751,0.00017339,2]
[388834909,1759408371204,-187.42973043,0.00017339,2]
[388834910,1759408374104,-203.65425316,0.00017339,2]
[388834911,1759408376188,-333.02370465,0.00017339,2]
[388834912,1759408378506,-310.94846158,0.00017339,2]
[388834913,1759408379450,2428.99383921,0.00017239,2]
[388834914,1759408380467,-500.0,0.00017339,2]
[388834915,1759408382154,-315.68738622,0.00017339,2]
[388834916,1759408383709,-300.0,0.00017338,2]
[388834917,1759408385236,-206.61339169,0.00017339,2]
[388834918,1759408386832,-285.58106092,0.00017339,2]
[388834919,1759408388343,-276.9921209,0.00017339,2]
[388834920,1759408390905,-276.13221432,0.00017339,2]
[388834921,1759408392939,-385.64536508,0.00017339,2]
[388834922,1759408394939,-300.0,0.00017339,2]
[388834923,1759408396577,-213.40616008,0.00017339,2]
[388834924,1759408397535,330.09030764,0.00017239,2]
[388834925,1759408398098,-500.0,0.00017339,2]
[388834926,1759408401566,-459.65614521,0.00017339,2]
[388834927,1759408402718,1219.93697331,0.00017239,2]
[388834928,1759408402742,1851.06918748,0.00017239,2]
[388834929,1759408403005,-200.0,0.00017339,2]
[388834930,1759408404451,-406.02189446,0.00017339,2]
[388834931,1759408407711,-166.84135727,0.00017339,2]
[388834932,1759408409324,-208.65514315,0.00017339,2]
[388834933,1759408411241,-382.63210755,0.00017339,2]
[388834934,1759408412624,-352.86848498,0.00017339,2]
[388834935,1759408413745,161.33723995,0.00024767,30]
[388834936,1759408414164,-152.70300438,0.00017339,2]
[388834937,1759408416285,-241.63803325,0.00017339,2]
[388834938,1759408417743,-183.255087,0.00017339,2]
[388834939,1759408419303,-154.43112863,0.00017339,2]
[388834940,1759408423009,-171.16813973,0.00017339,2]
[388834941,1759408425007,-164.52220721,0.00017339,2]
[388834942,1759408427099,-222.28871557,0.00017339,2]
[388834943,1759408428604,-180.25513429,0.00017339,2]
[388834944,1759408431897,-293.87486244,0.00017339,2]
[388834945,1759408433355,-152.0,0.00017339,2]
[388834946,1759408434871,-407.18855488,0.00017339,2]
[388834947,1759408438144,-349.36920343,0.00017339,2]
[388834948,1759408440264,-193.5237827,0.00017339,2]
[388834949,1759408441984,-495.89565102,0.00017339,2]
[388834950,1759408443621,-212.5845803,0.00017338,2]
[388834951,1759408444097,-87.4154197,0.00017338,2]
[388834952,1759408444390,-2447.23532781,0.00017339,2]
[388834953,1759408444480,-10000.01,0.00017339,2]
[388834954,1759408444616,-10000.01,0.00017339,2]
[388834955,1759408444730,-10000.01,0.00017339,2]
[388834956,1759408444903,-4064.56779869,0.00017339,2]
[388834957,1759408444932,-300.0,0.00017339,2]
[388834958,1759408444964,-300.0,0.00017339,2]
[388834959,1759408444994,-300.0,0.00017339,2]
[388834960,1759408445355,-300.0,0.00017339,2]
[388834961,1759408445387,-300.0,0.00017339,2]
[388834962,1759408445419,-300.0,0.00017339,2]
[388834963,1759408445451,-300.0,0.00017339,2]
[388834964,1759408445481,-300.0,0.00017339,2]
[388834965,1759408445511,-300.0,0.00017339,2]
[388834966,1759408445541,-300.0,0.00017339,2]
[388834967,1759408445570,-300.0,0.00017339,2]
[388834968,1759408445601,-300.0,0.00017339,2]
[388834969,1759408445631,-300.0,0.00017339,2]
[388834970,1759408445659,-300.0,0.00017339,2]
[388834971,1759408445687,-300.0,0.00017339,2]
[388834972,1759408445714,-500.0,0.000174,2]
[388834973,1759408445786,-1991.69450056,0.000176,2]
[388834974,1759408445816,-600.0,0.00017685,2]
[388834975,1759408445843,-1736.75047327,0.00017792,2]
[388834976,1759408445892,-1343.12005234,0.00017792,2]
[388834977,1759408445919,-500.0,0.00017973,2]
[388834978,1759408445946,-500.0,0.00017973,2]
[388834979,1759408445973,-469.30682101,0.00017973,2]
[388834980,1759408445999,-500.0,0.00017973,2]
[388834981,1759408446028,-769.9,0.0001798,3]
[388834982,1759408446055,-384.95,0.0001798,3]
[388834983,1759408446087,-225.24145634,0.00017988,2]
[388834984,1759408446117,-114.97334062,0.00017988,2]
[388834985,1759408446386,-289.27485921,0.00017339,2]
[388834986,1759408446855,-249.63283699,0.00017339,2]
[388834987,1759408446873,-500.0,0.00017339,2]
[388834988,1759408446897,-469.30682101,0.00017339,2]
[388834989,1759408446911,-500.0,0.00017339,2]
[388834990,1759408446924,-769.9,0.00017339,2]
[388834991,1759408446943,-384.95,0.00017339,2]
[388834992,1759408446958,-225.24145634,0.00017339,2]
[388834993,1759408446993,-500.0,0.00017339,2]
[388834994,1759408447065,-10000.01,0.00017339,2]
[388834995,1759408447943,-10000.01,0.00017339,2]
[388834996,1759408447970,-329.3851065,0.00017339,2]
[388834997,1759408448790,-10000.01,0.00017339,2]
[388834998,1759408448805,-10000.01,0.00017339,2]
[388834999,1759408448943,-10000.01,0.00017339,2]
[388835000,1759408458167,-10000.01,0.00017339,2]
[388835001,1759408458437,-10000.01,0.00017339,2]
[388835002,1759408459081,-809.89510975,0.00017339,2]
[388835003,1759408459121,-1619.7902195,0.00017339,2]
[388835004,1759408459170,-3239.580439,0.00017339,2]
[388835005,1759408459217,-3520.849122,0.00017339,2]
[388835006,1759408487949,4265.9586878,0.00017339,2]
[388835007,1759408498555,496.68071013,0.00025,30]
[388835008,1759408502400,500.0,0.00025,30]
[388835009,1759408503210,168.06751987,0.00025,30]
[388835010,1759408532802,170.0,0.00025471,120]
[388835011,1759408534101,170.0,0.00026745,120]
[388835012,1759408611217,178.3595211,0.00016988,2]
[388835013,1759408614768,1000.0,0.00028767,120]
[388835014,1759408643314,-567.37658991,0.00017532,2]
[388835015,1759408647209,-170.6148935,0.00017532,2]
[388835016,1759408654704,-200.0,0.00017532,2]
[388835017,1759408657097,-500.0,0.00017532,2]
[388835018,1759408658890,-303.33571407,0.00017532,2]
[388835019,1759408661574,-281.99033271,0.00017532,2]
[388835020,1759408664292,-518.81396918,0.00017532,2]
[388835021,1759408667879,-360.37186939,0.00017532,2]
[388835022,1759408671398,-227.46344808,0.00017532,2]
[388835023,1759408672830,239.41687668,0.00017339,2]
[388835024,1759408672852,4760.58312332,0.00017339,2]
[388835025,1759408680560,189.17,0.00015105,2]
[388835026,1759408684909,605.93866778,0.00016985,2]